bitfinex/quotes_BTCUSD_20220205
["timestamp","ask_amount","ask_price","bid_price","bid_amount"]
[1644037193275,0.0198153,41479.0,41477.0,0.12913465]
[1644037193673,0.00010371,41478.0,41477.0,0.12913465]
[1644037195529,0.02015487,41479.0,41477.0,0.41239397]
[1644037196230,0.02015487,41479.0,41478.0,0.28126666]
[1644037196433,0.0198153,41479.0,41478.0,0.28126666]
[1644037199581,0.0198153,41479.0,41478.0,0.33116295]
[1644037200673,0.0198153,41479.0,41478.0,0.04989629]
[1644037200874,0.00083235,41481.0,41478.0,0.04989629]
[1644037201077,0.02151472,41484.0,41481.0,0.32374153]
[1644037201276,0.02151472,41484.0,41483.0,0.04989629]
[1644037201475,0.02185498,41484.0,41483.0,0.04989629]
[1644037201675,0.02151472,41484.0,41483.0,0.04989629]
[1644037202375,0.02151472,41484.0,41483.0,0.0529343]
[1644037203228,0.00044397,41485.0,41484.0,0.060242]
[1644037203530,0.00010371,41485.0,41484.0,0.060242]
[1644037203930,0.00010371,41485.0,41484.0,0.13599758]
[1644037204230,0.00010371,41485.0,41484.0,0.18589387]
[1644037206578,0.00010371,41485.0,41484.0,0.06328001]
[1644037206784,0.00010371,41485.0,41484.0,0.00303801]
[1644037206785,0.37579671,41485.0,41484.0,0.00303801]
[1644037206978,0.71947225,41485.0,41484.0,0.00303801]
[1644037207980,0.8,41484.0,41482.0,0.08263188]
[1644037208184,0.84773443,41483.0,41482.0,0.08263188]
[1644037208381,1.0421968,41483.0,41482.0,0.08263188]
[1644037208580,1.0421968,41483.0,41480.0,0.060262]
[1644037208783,0.04468371,41481.0,41469.0,0.14286811]
[1644037208981,0.04468371,41470.0,41469.0,0.09297182]
[1644037209182,0.00010371,41470.0,41467.0,0.04989629]
[1644037209481,0.00010371,41470.0,41469.0,0.120537]
[1644037209679,0.00010371,41470.0,41469.0,0.38869427]
[1644037209879,0.00010371,41470.0,41469.0,0.46256708]
[1644037210734,0.00010371,41470.0,41469.0,0.120537]
[1644037210936,0.04468371,41470.0,41465.0,0.06028]
[1644037211130,0.04468371,41470.0,41459.0,0.2238]
[1644037211131,0.00010371,41466.0,41459.0,0.1238]
[1644037211332,0.00010371,41460.0,41457.0,0.14286811]
[1644037211533,0.19456608,41460.0,41455.0,0.09297182]
[1644037211731,0.14988237,41460.0,41458.0,0.27606963]
[1644037211931,0.00010371,41459.0,41458.0,0.27606963]
[1644037212129,0.27567092,41459.0,41458.0,0.27606963]
[1644037212330,0.00010371,41459.0,41458.0,0.27606963]
[1644037212631,0.00010371,41459.0,41458.0,0.33635863]
[1644037214279,0.00010371,41459.0,41458.0,0.41149959]
[1644037215886,0.02079999,41464.0,41459.0,0.8]
[1644037216085,0.02079999,41464.0,41462.0,0.05]
[1644037216283,0.02079999,41464.0,41463.0,0.05]
[1644037216681,0.02079999,41464.0,41460.0,0.17055]
[1644037216884,0.19866042,41469.0,41460.0,0.17055]
[1644037217083,0.3,41468.0,41463.0,0.060269]
[1644037217631,0.3,41468.0,41462.0,0.00081997]
[1644037218031,0.44988237,41468.0,41462.0,0.00081997]
[1644037218234,0.14988237,41468.0,41462.0,0.00081997]
[1644037218437,0.17067656,41468.0,41460.0,0.17055]
[1644037218633,0.17067656,41468.0,41463.0,0.00079127]
[1644037218834,0.02079419,41468.0,41463.0,0.00079127]
[1644037219235,0.19446237,41464.0,41463.0,0.00079127]
[1644037219434,0.43720623,41464.0,41463.0,0.06107127]
[1644037219636,0.39262623,41464.0,41463.0,0.13542096]
[1644037219836,0.24274386,41464.0,41463.0,0.13542096]
[1644037220035,0.28732386,41464.0,41463.0,0.13542096]
[1644037220235,0.24274386,41464.0,41463.0,0.07514096]
[1644037220435,0.28184822,41468.0,41463.0,0.07514096]
[1644037220635,0.26105403,41468.0,41463.0,0.07514096]
[1644037220837,0.19446237,41464.0,41463.0,0.07514096]
[1644037221040,0.19446237,41464.0,41463.0,0.07593222]
[1644037221877,0.24655481,41468.0,41463.0,0.07593222]
[1644037222078,0.24655481,41468.0,41463.0,0.07514096]
[1644037222079,0.5076181,41468.0,41463.0,0.07514096]
[1644037222277,0.19446237,41465.0,41464.0,0.060277]
[1644037222479,0.14988237,41467.0,41464.0,0.060277]
[1644037222678,0.29113481,41468.0,41465.0,0.0681511]
[1644037222880,0.44101718,41468.0,41465.0,0.0681511]
[1644037224082,0.68549479,41468.0,41465.0,0.0681511]
[1644037224884,0.68549479,41468.0,41466.0,0.07514096]
[1644037225325,0.19446237,41468.0,41466.0,0.07514096]
[1644037225526,0.30618387,41471.0,41467.0,0.060272]
[1644037225725,0.01836605,41471.0,41467.0,0.060272]
[1644037226433,0.19446237,41468.0,41467.0,0.060272]
[1644037227227,0.19446237,41468.0,41466.0,0.07514096]
[1644037229375,0.14988237,41471.0,41467.0,0.060274]
[1644037230174,0.14988237,41471.0,41469.0,0.03757048]
[1644037230375,0.14988237,41471.0,41469.0,0.07514096]
[1644037230376,0.26783251,41470.0,41469.0,0.07514096]
[1644037235145,0.26783251,41470.0,41469.0,0.03757048]
[1644037235352,0.04458,41469.0,41465.0,0.0681511]
[1644037235546,0.04458,41469.0,41467.0,0.06107001]
[1644037235747,0.14988237,41468.0,41467.0,0.06107001]
[1644037236479,0.14988237,41468.0,41467.0,0.060277]
[1644037238182,0.26783251,41470.0,41467.0,0.060277]
[1644037238482,0.14988237,41468.0,41467.0,0.060277]
[1644037239082,0.14981753,41468.0,41467.0,0.060277]
[1644037239287,0.26783251,41470.0,41467.0,0.060277]
[1644037239483,0.19439753,41468.0,41467.0,0.060277]
[1644037239885,0.26783251,41470.0,41467.0,0.060277]
[1644037240326,0.14981753,41468.0,41467.0,0.060277]
[1644037240525,0.14981753,41468.0,41467.0,0.09784748]
[1644037240927,0.14981753,41468.0,41467.0,0.03757048]
[1644037242528,0.19439753,41468.0,41467.0,0.03757048]
[1644037243629,0.14981753,41468.0,41467.0,0.03757048]
[1644037244080,0.25098151,41472.0,41467.0,0.03757048]
[1644037244281,0.14981753,41471.0,41467.0,0.03757048]
[1644037244483,0.7,41471.0,41466.0,0.02285048]
[1644037244882,0.25098151,41472.0,41466.0,0.02285048]
[1644037245083,0.25098151,41472.0,41466.0,0.02364351]
[1644037245279,0.14981753,41468.0,41466.0,0.02364351]
[1644037245480,0.25098151,41472.0,41466.0,0.02364351]
[1644037245880,0.25098151,41472.0,41468.0,0.03757048]
[1644037246080,0.25098151,41472.0,41469.0,0.060274]
[1644037246985,0.14981753,41471.0,41469.0,0.060274]
[1644037247180,0.04458,41470.0,41469.0,0.060274]
[1644037248424,0.25098151,41472.0,41469.0,0.060274]
[1644037248626,0.19894026,41473.0,41469.0,0.060274]
[1644037248826,0.04458,41473.0,41469.0,0.060274]
[1644037249225,0.04458,41473.0,41469.0,0.110274]
[1644037249427,0.14981753,41471.0,41469.0,0.060274]
[1644037250025,0.04458,41472.0,41469.0,0.060274]
[1644037250228,0.2322885,41474.0,41469.0,0.060274]
[1644037250827,0.42668603,41474.0,41469.0,0.060274]
[1644037251026,0.2322885,41474.0,41472.0,0.03757048]
[1644037251281,0.2322885,41474.0,41473.0,0.12361815]
[1644037251474,0.42668603,41474.0,41473.0,0.12361815]
[1644037252075,0.42668603,41474.0,41472.0,0.03757048]
[1644037254375,0.42668603,41474.0,41472.0,0.10951495]
[1644037255826,0.19439753,41474.0,41472.0,0.10951495]
[1644037256228,0.19439753,41474.0,41472.0,0.07194447]
[1644037256429,0.19439753,41474.0,41473.0,0.03757048]
[1644037256830,0.52551053,41474.0,41473.0,0.03757048]
[1644037257029,0.8161781,41474.0,41473.0,0.03757048]
[1644037257630,1.07048051,41474.0,41473.0,0.03757048]
[1644037257830,0.77981294,41474.0,41473.0,0.03757048]
[1644037258030,0.19439753,41474.0,41473.0,0.03757048]
[1644037264837,0.19439753,41474.0,41467.0,0.11330063]
[1644037264838,0.89439753,41474.0,41467.0,0.11330063]
[1644037265243,0.7,41474.0,41467.0,0.11330063]
[1644037265442,0.19439753,41470.0,41467.0,0.06330063]
[1644037265939,0.19439753,41470.0,41467.0,0.11330063]
[1644037266138,0.19439753,41470.0,41467.0,0.06330063]
[1644037266688,0.04458,41469.0,41468.0,0.07011889]
[1644037267890,0.19439753,41470.0,41468.0,0.07011889]
[1644037268286,0.14981753,41472.0,41468.0,0.07011889]
[1644037268486,0.7218665,41474.0,41469.0,0.060276]
[1644037268687,0.74212367,41474.0,41469.0,0.060276]
[1644037269086,0.74212367,41474.0,41469.0,0.06110918]
[1644037269488,0.14981753,41471.0,41469.0,0.06110918]
[1644037270128,0.04458,41472.0,41468.0,0.07011889]
[1644037270331,0.14981753,41470.0,41468.0,0.13122608]
[1644037270533,0.04458,41469.0,41468.0,0.12095208]
[1644037271334,0.04458,41469.0,41468.0,0.05]
[1644037271533,0.14981753,41467.0,41466.0,0.0008332]
[1644037272532,0.19439753,41467.0,41465.0,0.08541618]
[1644037272732,0.06028047,41470.0,41465.0,0.08541618]
[1644037273534,0.06028047,41470.0,41466.0,0.060278]
[1644037273535,0.19439753,41467.0,41466.0,0.060278]
[1644037273788,0.14981753,41467.0,41466.0,0.060278]
[1644037274182,0.19439753,41467.0,41466.0,0.060278]
[1644037274382,0.19439753,41467.0,41465.0,0.0862494]
[1644037274986,0.19439753,41467.0,41465.0,0.08541618]
[1644037276185,0.28685807,41472.0,41465.0,0.08541618]
[1644037276385,0.28685807,41472.0,41467.0,0.060282]
[1644037276786,0.19439753,41468.0,41467.0,0.060282]
[1644037277629,0.14981753,41468.0,41467.0,0.060282]
[1644037280232,0.19439753,41468.0,41467.0,0.060282]
[1644037284685,0.19439753,41468.0,41467.0,0.06037459]
[1644037284884,0.19439753,41468.0,41467.0,0.060282]
[1644037285140,0.14981753,41468.0,41465.0,0.00083295]
[1644037285340,0.04458,41466.0,41465.0,0.00083295]
[1644037285741,0.04458,41466.0,41463.0,0.05]
[1644037285939,0.04458,41466.0,41463.0,0.05083297]
[1644037286144,0.14981753,41464.0,41463.0,0.05083297]
[1644037286340,0.04458,41466.0,41463.0,0.05083297]
[1644037286941,0.04458,41466.0,41459.0,0.120575]
[1644037287141,0.04458,41466.0,41463.0,0.05]
[1644037287343,0.04458,41466.0,41464.0,0.060286]
[1644037287543,0.04448741,41466.0,41464.0,0.060286]
[1644037287742,0.14981753,41467.0,41464.0,0.060286]
[1644037288145,0.04448741,41465.0,41464.0,0.060286]
[1644037288545,0.14981753,41467.0,41464.0,0.060286]
[1644037288792,0.19430494,41467.0,41464.0,0.060286]
[1644037290484,0.14981753,41467.0,41464.0,0.060286]
[1644037291387,0.19430494,41467.0,41464.0,0.060286]
[1644037291784,0.14981753,41467.0,41464.0,0.060286]
[1644037292083,0.04448741,41465.0,41464.0,0.060286]
[1644037292284,0.19430494,41467.0,41464.0,0.060286]
[1644037293336,0.14981753,41467.0,41464.0,0.060286]
[1644037293535,0.04448741,41466.0,41464.0,0.060286]
[1644037294337,0.04448741,41466.0,41464.0,0.050286]
[1644037297484,0.19430494,41467.0,41464.0,0.050286]
[1644037299189,0.06454045,41470.0,41467.0,0.060276]
[1644037299587,0.04448741,41470.0,41467.0,0.060276]
[1644037300432,0.19430494,41468.0,41467.0,0.060276]
[1644037300631,0.19430494,41468.0,41466.0,0.00078858]
[1644037301233,0.19430494,41467.0,41466.0,0.00078858]
[1644037301433,0.19430494,41467.0,41465.0,0.060287]
[1644037301639,0.19430494,41467.0,41465.0,0.0610756]
[1644037302531,0.19430494,41467.0,41465.0,0.060287]
[1644037303789,0.04448741,41466.0,41465.0,0.060287]
[1644037305180,0.19401468,41467.0,41465.0,0.110287]
[1644037305381,0.02033826,41471.0,41465.0,0.110287]
[1644037305583,0.04448741,41470.0,41468.0,0.110276]
[1644037306082,0.04448741,41470.0,41468.0,0.060276]
[1644037306381,0.04448741,41470.0,41468.0,0.110276]
[1644037308435,0.19401468,41474.0,41468.0,0.30355339]
[1644037309137,0.19401468,41474.0,41471.0,0.05]
[1644037309343,0.21472039,41475.0,41472.0,0.14634943]
[1644037310039,0.37560041,41473.0,41469.0,0.00050079]
[1644037310239,0.06028246,41472.0,41469.0,0.00050079]
[1644037310838,0.27762178,41470.0,41469.0,0.00050079]
[1644037311038,0.27762178,41470.0,41468.0,0.06784851]
[1644037311294,0.23313437,41470.0,41468.0,0.0686402]
[1644037311490,0.23313437,41470.0,41468.0,0.1186402]
[1644037311788,0.06498746,41474.0,41469.0,0.060282]
[1644037311991,0.06498746,41474.0,41471.0,0.05]
[1644037312187,0.02050005,41474.0,41469.0,0.00119]
[1644037312388,0.19401468,41472.0,41469.0,0.00198169]
[1644037313388,0.25739435,41473.0,41470.0,0.060278]
[1644037313987,0.25739435,41473.0,41472.0,0.05]
[1644037314188,0.33739435,41473.0,41469.0,0.00119]
[1644037314889,0.33739435,41473.0,41469.0,0.00198167]
[1644037315334,0.33739435,41473.0,41472.0,0.110276]
[1644037316132,0.33739435,41473.0,41472.0,0.111466]
[1644037316333,0.38188176,41473.0,41472.0,0.061466]
[1644037316532,0.33739435,41473.0,41472.0,0.00119]
[1644037317139,0.38188176,41473.0,41472.0,0.00119]
[1644037317333,0.65256041,41473.0,41472.0,0.00119]
[1644037317533,0.608073,41473.0,41472.0,0.00119]
[1644037317733,0.35067865,41473.0,41472.0,0.00119]
[1644037317933,0.08,41473.0,41472.0,0.00119]
[1644037318788,0.08,41473.0,41472.0,0.05119]
[1644037319184,0.08,41473.0,41472.0,0.05]
[1644037321188,0.12448741,41473.0,41471.0,0.060278]
[1644037321389,0.12448741,41473.0,41470.0,0.00119]
[1644037321589,0.08,41471.0,41470.0,0.00119]
[1644037323131,0.07970975,41471.0,41470.0,0.00119]
[1644037324632,0.07970975,41471.0,41470.0,0.061469]
[1644037327082,0.07970975,41471.0,41470.0,0.111469]
[1644037327381,0.07970975,41471.0,41470.0,0.061469]
[1644037333438,0.2906006,41471.0,41470.0,0.061469]
[1644037335488,0.07970975,41471.0,41470.0,0.061469]
[1644037336785,0.07970975,41471.0,41470.0,0.111469]
[1644037343381,0.07970975,41471.0,41470.0,0.061469]
[1644037343882,0.07970975,41471.0,41470.0,0.111469]
[1644037345137,0.07970975,41471.0,41470.0,0.061469]
[1644037345337,0.34186301,41471.0,41470.0,0.00119]
[1644037345636,0.34186301,41471.0,41468.0,0.12887602]
[1644037345842,0.07970975,41471.0,41469.0,0.00119]
[1644037346038,0.07964088,41471.0,41469.0,0.00119]
[1644037347440,0.07964088,41471.0,41469.0,0.061469]
[1644037351398,0.34537661,41471.0,41469.0,0.061469]
[1644037351600,0.3903834,41470.0,41469.0,0.00119]
[1644037352201,0.3903834,41470.0,41465.0,0.12073996]
[1644037352400,0.3903834,41470.0,41466.0,0.00119]
[1644037353038,0.07964088,41467.0,41466.0,0.00119]
[1644037353237,0.71075388,41467.0,41466.0,0.00119]
[1644037353837,0.75895388,41467.0,41466.0,9e-05]
[1644037354234,0.07964088,41465.0,41459.0,0.0001809]
[1644037354436,0.3461324,41457.0,41456.0,0.0001809]
[1644037354636,0.3461324,41457.0,41454.0,0.0032809]
[1644037355035,0.07964088,41457.0,41454.0,0.0032809]
[1644037355236,0.07964088,41457.0,41454.0,0.0635809]
[1644037355435,0.07964088,41457.0,41455.0,0.08259401]
[1644037355636,0.07964088,41457.0,41455.0,0.08277491]
[1644037356984,0.07964088,41457.0,41455.0,0.0001809]
[1644037357184,0.07964088,41457.0,41454.0,0.06420894]
[1644037357185,0.07964088,41457.0,41454.0,0.00408984]
[1644037357585,0.07964088,41457.0,41454.0,0.06438884]
[1644037357984,0.07964088,41457.0,41454.0,0.0635799]
[1644037358586,0.07964088,41457.0,41455.0,0.0682991]
[1644037358890,0.07964088,41457.0,41455.0,0.06848]
[1644037359485,0.07964088,41456.0,41455.0,0.06848]
[1644037360337,0.07964088,41456.0,41455.0,0.11848]
[1644037361936,0.07964088,41456.0,41455.0,0.11348]
[1644037366894,0.04034625,41461.0,41457.0,0.060285]
[1644037367095,0.04034625,41461.0,41460.0,0.05]
[1644037367538,0.04034625,41461.0,41460.0,0.0501809]
[1644037367739,0.05892835,41461.0,41460.0,0.0501809]
[1644037367940,0.0185821,41461.0,41460.0,0.0501809]
[1644037368138,0.1197,41470.0,41461.0,0.657443]
[1644037368338,0.1197,41470.0,41465.0,0.060277]
[1644037368540,0.24401468,41472.0,41467.0,0.05]
[1644037368843,0.19952727,41472.0,41467.0,0.05]
[1644037369040,0.05,41472.0,41467.0,0.05]
[1644037369238,0.05,41472.0,41468.0,0.07792855]
[1644037369443,0.26183618,41472.0,41468.0,0.07792855]
[1644037370039,0.26183618,41472.0,41468.0,0.07872068]
[1644037370439,0.26183618,41472.0,41468.0,0.13899768]
[1644037371139,0.26183618,41472.0,41470.0,0.04992792]
[1644037371684,0.72079296,41475.0,41470.0,0.04992792]
[1644037372384,0.53992938,41474.0,41470.0,0.11020392]
[1644037372685,0.53992938,41474.0,41469.0,0.00079213]
[1644037373085,0.14952727,41472.0,41469.0,0.00079213]
[1644037373485,0.14952727,41472.0,41468.0,0.07792855]
[1644037373687,0.14952727,41472.0,41468.0,0.07872068]
[1644037374085,0.26331932,41471.0,41468.0,0.07872068]
[1644037374485,0.20831932,41471.0,41468.0,0.07872068]
[1644037374691,0.20831932,41471.0,41468.0,0.07792855]
[1644037375133,0.04448741,41469.0,41468.0,0.07792855]
[1644037375333,0.20831932,41471.0,41468.0,0.07792855]
[1644037375933,0.04448741,41469.0,41468.0,0.07792855]
[1644037376233,0.26214759,41469.0,41468.0,0.07792855]
[1644037376432,0.306635,41469.0,41468.0,0.07792855]
[1644037376632,0.04448741,41469.0,41468.0,0.07792855]
[1644037377039,0.47793535,41472.0,41468.0,0.07792855]
[1644037378134,0.28392067,41472.0,41468.0,0.07792855]
[1644037378335,0.43344794,41472.0,41468.0,0.07792855]
[1644037378806,0.47793535,41472.0,41468.0,0.07792855]
[1644037379002,0.28392067,41472.0,41468.0,0.07792855]
[1644037379402,0.04448741,41469.0,41468.0,0.07792855]
[1644037380008,0.28392067,41472.0,41468.0,0.07792855]
[1644037380306,0.43344794,41472.0,41468.0,0.07792855]
[1644037380506,0.04448741,41469.0,41468.0,0.07792855]
[1644037380905,0.28392067,41472.0,41468.0,0.07792855]
[1644037381308,0.34420323,41472.0,41462.0,0.0001809]
[1644037381506,0.04448741,41469.0,41461.0,0.17049392]
[1644037381708,0.19401468,41464.0,41461.0,0.120566]
[1644037382105,0.19401468,41464.0,41463.0,0.00081326]
[1644037382311,0.04448741,41466.0,41463.0,0.00081326]
[1644037382538,0.04448741,41466.0,41463.0,0.14529966]
[1644037383138,0.04448741,41466.0,41463.0,0.0841984]
[1644037383540,0.19401468,41464.0,41463.0,0.0841984]
[1644037383941,0.26855951,41467.0,41462.0,0.00099417]
[1644037384145,0.14952727,41463.0,41462.0,0.00081327]
[1644037384341,0.04448741,41462.0,41461.0,0.0604719]
[1644037384543,0.46257419,41467.0,41461.0,0.060291]
[1644037384742,0.46257419,41467.0,41461.0,0.0604719]
[1644037385141,0.48089941,41467.0,41461.0,0.0604719]
[1644037385546,0.24482158,41462.0,41461.0,0.0001809]
[1644037385747,0.24482158,41462.0,41460.0,0.0005]
[1644037385748,0.92540002,41462.0,41460.0,0.0005]
[1644037385946,0.62701712,41461.0,41460.0,0.0005]
[1644037386486,0.86445858,41461.0,41460.0,0.0005]
[1644037386684,0.91445858,41461.0,41460.0,0.0005]
[1644037389185,0.86445858,41461.0,41460.0,0.0005]
[1644037389591,0.331113,41461.0,41460.0,0.0005]
[1644037389787,0.04448741,41462.0,41460.0,0.0005]
[1644037390040,0.331113,41464.0,41460.0,0.0005]
[1644037390434,0.21906717,41463.0,41460.0,0.0005]
[1644037390636,0.21906717,41463.0,41460.0,0.0006809]
[1644037391336,0.21906717,41463.0,41460.0,0.0609709]
[1644037391536,0.28650821,41465.0,41460.0,0.0609709]
[1644037391736,0.331113,41464.0,41460.0,0.0609709]
[1644037392138,0.19401468,41461.0,41460.0,0.0609709]
[1644037392338,0.52512768,41461.0,41460.0,0.0006809]
[1644037392547,0.76995679,41461.0,41460.0,0.0006809]
[1644037392739,0.86995679,41461.0,41460.0,0.0006809]
[1644037392940,0.86995679,41461.0,41460.0,0.0005]
[1644037393801,0.86995679,41461.0,41460.0,0.0006809]
[1644037393995,1.16995679,41461.0,41460.0,0.0006809]
[1644037394196,1.26995679,41461.0,41460.0,0.0005]
[1644037395396,1.26984057,41461.0,41460.0,0.0005]
[1644037396402,0.14952727,41455.0,41454.0,0.0031]
[1644037396601,0.52884027,41455.0,41454.0,0.0031]
[1644037396899,0.52512768,41449.0,41447.0,0.0011]
[1644037397097,0.8211519,41449.0,41447.0,0.0011]
[1644037397297,0.9211519,41449.0,41447.0,0.0011]
[1644037397536,0.7711519,41449.0,41447.0,0.0011]
[1644037397742,1.2711519,41449.0,41447.0,0.0011]
[1644037397938,1.2711519,41449.0,41448.0,0.00218091]
[1644037397939,0.8193519,41449.0,41448.0,0.00218091]
[1644037398140,0.29422422,41449.0,41448.0,0.05210883]
[1644037398338,0.4882389,41449.0,41448.0,0.00218091]
[1644037398738,0.8193519,41449.0,41448.0,0.00218091]
[1644037398937,0.52884027,41449.0,41448.0,0.00218091]
[1644037399138,0.0482,41449.0,41448.0,0.00218091]
[1644037399337,0.09268741,41449.0,41448.0,0.00218091]
[1644037399738,0.0482,41449.0,41448.0,0.00218091]
[1644037400738,0.04448741,41450.0,41448.0,0.00218091]
[1644037401297,0.14952727,41451.0,41448.0,0.00218091]
[1644037402389,0.14952727,41451.0,41448.0,0.06248791]
[1644037404392,0.14952727,41451.0,41448.0,0.00218091]
[1644037406440,2.20562925,41451.0,41448.0,0.00218091]
[1644037406640,0.14952727,41451.0,41448.0,0.00218091]
[1644037407144,0.02097389,41454.0,41450.0,0.24959349]
[1644037407342,0.02097389,41454.0,41453.0,0.04992792]
[1644037407541,0.05,41459.0,41454.0,0.06029]
[1644037407741,0.05,41459.0,41454.0,0.34854411]
[1644037408041,0.05,41459.0,41455.0,0.27411321]
[1644037408443,0.05,41459.0,41455.0,0.27491528]
[1644037409294,0.05,41459.0,41457.0,0.060291]
[1644037409699,0.04951019,41459.0,41457.0,0.060291]
[1644037411892,0.04951019,41459.0,41457.0,0.06047162]
[1644037413638,0.04951019,41459.0,41457.0,0.00018062]
[1644037413839,0.04951019,41459.0,41456.0,0.05084662]
[1644037414038,0.04951019,41459.0,41456.0,0.0009187]
[1644037414237,0.04951019,41459.0,41456.0,0.00018062]
[1644037414437,0.04951019,41459.0,41455.0,0.07399464]
[1644037415540,0.04951019,41459.0,41455.0,0.07325264]
[1644037415739,0.04951019,41459.0,41455.0,0.07399465]
[1644037416593,0.04951019,41459.0,41455.0,0.07325264]
[1644037416889,0.04951019,41459.0,41455.0,0.07399432]
[1644037417492,0.331113,41458.0,41455.0,0.00074168]
[1644037417691,0.45172284,41458.0,41455.0,0.00074168]
[1644037417892,0.331113,41456.0,41453.0,0.00018062]
[1644037418093,0.12060984,41458.0,41454.0,0.00074133]
[1644037418293,0.331113,41457.0,41454.0,0.00074133]
[1644037418892,0.431113,41457.0,41454.0,0.00074133]
[1644037419093,0.12060984,41458.0,41455.0,0.08351875]
[1644037419292,0.331113,41457.0,41455.0,0.08351875]
[1644037420537,0.481113,41457.0,41455.0,0.08351875]
[1644037420737,0.15,41457.0,41455.0,0.08369937]
[1644037421339,0.331113,41456.0,41455.0,0.08369937]
[1644037421739,0.331113,41456.0,41455.0,0.08351875]
[1644037421938,0.331113,41456.0,41455.0,0.08369937]
[1644037422139,0.15,41457.0,41455.0,0.08369937]
[1644037422338,0.17060984,41458.0,41455.0,0.08369937]
[1644037422538,0.331113,41457.0,41455.0,0.08369937]
[1644037422839,0.431113,41457.0,41455.0,0.08369937]
[1644037423438,0.12060984,41458.0,41455.0,0.08369937]
[1644037423644,0.04951019,41459.0,41455.0,0.08369937]
[1644037423891,0.331113,41458.0,41455.0,0.08369937]
[1644037424090,0.331113,41458.0,41455.0,0.08426014]
[1644037424690,0.391419,41458.0,41455.0,0.08426014]
[1644037424893,0.09951019,41459.0,41455.0,0.08426014]
[1644037425091,0.04951019,41459.0,41455.0,0.08351875]
[1644037425390,0.04951019,41459.0,41455.0,0.08369937]
[1644037426390,0.331113,41457.0,41455.0,0.08369937]
[1644037426591,0.331113,41457.0,41455.0,0.00092201]
[1644037426893,0.04951019,41459.0,41455.0,0.00074139]
[1644037427094,0.04951019,41459.0,41456.0,0.26233466]
[1644037427394,0.10981319,41459.0,41456.0,0.26233466]
[1644037427642,0.10981319,41459.0,41457.0,0.07107972]
[1644037428042,0.10981319,41459.0,41457.0,0.07126034]
[1644037428241,0.10981319,41459.0,41457.0,0.07107972]
[1644037428444,0.17011508,41459.0,41457.0,0.07107972]
[1644037428642,0.17003234,41459.0,41457.0,0.07107972]
[1644037428847,0.331113,41458.0,41457.0,0.07107972]
[1644037429144,0.331113,41458.0,41457.0,0.07126034]
[1644037430243,0.331113,41458.0,41457.0,0.07107972]
[1644037436840,0.331113,41458.0,41457.0,0.07126034]
[1644037437040,0.331113,41458.0,41457.0,0.07107972]
[1644037439387,0.331113,41458.0,41457.0,0.12100764]
[1644037439994,0.331113,41458.0,41457.0,0.07107972]
[1644037440489,0.331113,41458.0,41457.0,0.12100764]
[1644037442940,0.331113,41458.0,41457.0,0.12040764]
[1644037443341,0.331113,41458.0,41457.0,0.07047972]
[1644037443944,0.331113,41458.0,41457.0,0.09460226]
[1644037447191,0.331113,41458.0,41457.0,0.14453018]
[1644037447390,0.06030612,41459.0,41457.0,0.14453018]
[1644037447789,0.331113,41458.0,41457.0,0.09460226]
[1644037449595,0.59180165,41458.0,41457.0,0.09460226]
[1644037449891,0.331113,41458.0,41457.0,0.09460226]
[1644037450345,0.331113,41458.0,41457.0,0.02412254]
[1644037452643,0.381113,41458.0,41457.0,0.02412254]
[1644037453244,0.64860373,41458.0,41457.0,0.02412254]
[1644037453891,0.74860373,41458.0,41457.0,0.02412254]
[1644037454293,0.79860373,41458.0,41457.0,0.02412254]
[1644037455390,0.64860373,41458.0,41457.0,0.02412254]
[1644037455591,0.79860373,41458.0,41457.0,0.02412254]
[1644037462596,0.531113,41458.0,41457.0,0.02412254]
[1644037463193,0.79632269,41458.0,41457.0,0.02412254]
[1644037463595,0.331113,41455.0,41451.0,0.00018062]
[1644037463794,0.26398305,41454.0,41451.0,0.00018062]
[1644037464098,0.379313,41453.0,41451.0,0.00018062]
[1644037464297,0.27432826,41449.0,41448.0,0.00218062]
[1644037464495,0.98821081,41449.0,41448.0,0.00218062]
[1644037464699,0.97206446,41449.0,41448.0,0.00218062]
[1644037464895,1.07206446,41449.0,41448.0,0.00218062]
[1644037465154,1.12206446,41449.0,41448.0,0.00218062]
[1644037465449,1.40912437,41449.0,41448.0,0.00218062]
[1644037468650,1.09250117,41449.0,41448.0,0.00218062]
[1644037470900,1.39338681,41449.0,41448.0,0.00218062]
[1644037471101,1.34338681,41449.0,41448.0,0.00218062]
[1644037471598,1.39338681,41449.0,41448.0,0.00218062]
[1644037476696,0.8,41448.0,41439.0,0.0011]
[1644037476898,0.8,41448.0,41437.0,0.0011]
[1644037476899,0.80007208,41447.0,41437.0,0.0011]
[1644037477098,0.75,41444.0,41434.0,0.0022]
[1644037477397,0.24854064,41436.0,41434.0,0.0022]
[1644037477595,0.0482,41435.0,41434.0,0.0022]
[1644037478095,0.379313,41435.0,41434.0,0.0022]
[1644037478296,0.379313,41435.0,41432.0,0.0011]
[1644037478297,0.779313,41435.0,41432.0,0.0011]
[1644037478499,0.331113,41434.0,41432.0,0.0011]
[1644037478694,0.0482,41433.0,41432.0,0.0011]
[1644037478893,0.379313,41433.0,41432.0,0.0011]
[1644037479096,0.76410228,41433.0,41431.0,0.0172]
[1644037479293,0.64504466,41432.0,41431.0,0.0172]
[1644037479495,0.74324466,41432.0,41431.0,0.0172]
[1644037479793,0.84324466,41432.0,41431.0,0.0172]
[1644037487397,0.75,41431.0,41430.0,0.0022]
[1644037487659,0.75,41431.0,41429.0,0.0011]
[1644037487660,1.64357081,41431.0,41429.0,0.0011]
[1644037487858,0.3670264,41430.0,41428.0,0.0011]
[1644037488063,0.75,41428.0,41423.0,0.00313204]
[1644037488260,0.72804356,41427.0,41423.0,0.00313204]
[1644037488659,0.82804356,41427.0,41423.0,0.00313204]
[1644037488862,0.82804356,41427.0,41414.0,0.25842041]
[1644037489059,0.19305895,41426.0,41414.0,0.25842041]
[1644037489258,2.72680683,41423.0,41414.0,0.13822041]
[1644037489459,0.86230633,41422.0,41414.0,0.13822041]
[1644037489659,0.96230633,41422.0,41418.0,0.05302792]
[1644037489860,1.06230633,41422.0,41418.0,0.05302792]
[1644037490260,1.06230633,41422.0,41419.0,0.00044917]
[1644037490463,0.79105273,41422.0,41419.0,0.00044917]
[1644037490961,1.05991137,41422.0,41419.0,0.00044917]
[1644037491162,1.05991137,41422.0,41418.0,0.05302792]
[1644037491399,1.05991137,41422.0,41419.0,0.00044917]
[1644037491797,1.05991137,41422.0,41420.0,0.00018113]
[1644037492696,1.05991137,41422.0,41419.0,0.00096555]
[1644037492896,1.05991137,41422.0,41420.0,0.00018113]
[1644037493096,0.79105273,41422.0,41420.0,0.00018113]